Cogmind - Beta 9.2 @@@ ROGUE MODE // 2019.12.16 @ 20:13:07 Player: moep Result: Self-destructed Performance ------------- Evolutions (2) 1000 Regions Visited (4) 800 Robots Destroyed (19) 95 Value Destroyed (469) 469 Prototype IDs (0) 0 Alien Tech Used (0) 0 Bonus (0) 0 TOTAL SCORE: 2364 Bonus ------- None Cogmind --------- Core Integrity 366/550 Matter 290/300 Energy 53/160 System Corruption 0% Temperature Cool (267) Movement Walking (120) Location -8/Materials Parts ------- > --- POWER (2) -------- Light Nuclear Core > --- PROPULSION (2) --- Aluminum Leg Improved Aluminum Leg > --- UTILITY (4) ------ Small Storage Unit Seismic Analyzer Transmission Jammer > --- WEAPON (3) ------- Spread Laser > --- INVENTORY (6) ---- Ion Engine Peak State ------------ > --- POWER ------------ Light Ion Engine Nuclear Core > --- PROPULSION ------- Improved Aluminum Leg > --- UTILITY ---------- Small Storage Unit Seismic Analyzer Transmission Jammer > --- WEAPON ----------- Spread Laser Particle Cannon Mini Grenade Launcher > --- INVENTORY -------- Ion Engine [Rating: 17] Favorites ----------- Power Ion Engine Engine Ion Engine Power Core Nuclear Core Propulsion Aluminum Leg Treads Light Treads Leg Aluminum Leg Utility Seismic Analyzer Device Improved Terrain Scanner Storage Small Storage Unit Processor Seismic Analyzer Weapon Assault Rifle Energy Gun EM Pulse Gun Energy Cannon Particle Cannon Ballistic Gun Assault Rifle Launcher Mini Grenade Launcher Build | -11 -10 -10 -9 -8 ------- Run | Scr Mat Min Mat Mat Slots Evolved 4 | . . . 2 2 Power 1 | . . . . 1 Propulsion . | . . . . . Utility 2 | . . . 2 . Weapon 1 | . . . . 1 Parts Attached 26 | 9 . 1 7 9 Power 5 | 1 . . 1 3 Engine 3 | 1 . . 1 1 Core 2 | . . . . 2 Reactor . | . . . . . Propulsion 7 | 3 . 1 1 2 Treads 1 | 1 . . . . Leg 6 | 2 . 1 1 2 Wheel . | . . . . . Hover . | . . . . . Flight . | . . . . . Utility 5 | 3 . . 1 1 Device 2 | 1 . . . 1 Storage 2 | 1 . . 1 . Processor 1 | 1 . . . . Hackware . | . . . . . Protection . | . . . . . Artifact . | . . . . . Weapon 9 | 2 . . 4 3 Energy Gun 6 | 1 . . 4 1 Energy Cannon 1 | . . . . 1 Ballistic Gun 1 | 1 . . . . Ballistic Cannon . | . . . . . Launcher 1 | . . . . 1 Special Weapon . | . . . . . Impact Weapon . | . . . . . Slashing Weapon . | . . . . . Piercing Weapon . | . . . . . Special Melee Weapon . | . . . . . Unidentified Prototypes . | . . . . . Parts Lost 13 | . . . 4 9 Power 4 | . . . 1 3 Propulsion 3 | . . . 1 2 Utility 1 | . . . 1 . Weapon 5 | . . . 1 4 Highest Loss Streak 9 | . . . 3 9 Average Slot Usage (%) 90 | . 100 100 83 83 Engine 11 | . 14 14 10 7 Core 1 | . . . . 7 Leg 23 | . 28 28 21 16 Device 10 | . 14 14 7 8 Storage 5 | . . . 11 9 Processor 11 | . 14 14 11 9 Energy Gun 14 | . 14 14 15 16 Ballistic Gun 8 | . 14 14 6 . Launcher 1 | . . . . 8 Naked Turns . | . . . . . Heaviest Build 20 | 14 10 10 16 20 Greatest Support 23 | 20 20 20 20 23 Greatest Overweight (x) 4 | 4 . . 1 1 Average Overweight (x) . | . . . . . Largest Inventory Capacity 6 | 6 4 4 6 6 Average Capacity 5 | 5 4 4 6 6 Most Carried 6 | 4 4 4 6 6 Average Carried 4 | 2 3 4 4 4 Final Capacity 6 | 4 4 4 6 6 Final Carried 6 | 4 4 4 6 1 Class Distribution -------------------- 74% | Mutant 25% | Scavenger-Mutant Dominant Class ---------------- Mutant | -10/Materials Mutant | -10/Mines Mutant | -9/Materials Scavenger-Mutant | -8/Materials Resources | -11 -10 -10 -9 -8 ----------- Run | Scr Mat Min Mat Mat Matter Collected 447 | 301 22 16 73 35 Remotely . | . . . . . Salvage Created 578 | 160 80 . 151 187 Parts 49 | 20 4 . 20 5 Haulers Intercepted . | . . . . . Recyclers Shooed 1 | 1 . . . . Parts Field Recycled . | . . . . . Retrieved Matter . | . . . . . Parts Self-Destructed . | . . . . . Prevented . | . . . . . Kills | -11 -10 -10 -9 -8 ------- Run | Scr Mat Min Mat Mat Combat Hostiles Destroyed 13 | . 2 . 7 4 Guns 13 | . 2 . 7 4 Classes Destroyed 7 | 3 1 . 2 1 Worker 2 | 2 . . . . Tunneler 3 | 3 . . . . Recycler 1 | 1 . . . . Swarmer 4 | . . . 4 . Grunt 7 | . 2 . 2 3 Sentry 1 | . . . 1 . Hunter 1 | . . . . 1 Best Kill Streak 4 | 3 2 . 4 4 Combat Bots Only 4 | . 2 . 4 4 Max Kills in Single Turn 1 | 1 1 . 1 1 Gunslinging . | . . . . . Exploded . | . . . . . Melee . | . . . . . Uniques/NPCs Destroyed . | . . . . . Combat | -11 -10 -10 -9 -8 -------- Run | Scr Mat Min Mat Mat Damage Taken 1165 | . 63 . 355 747 Core 228 | . . . 44 184 Absorbed by Shields . | . . . . . Core Remaining (%) 96 | 100 . 100 89 . Volleys Fired 58 | 8 4 1 20 25 Largest 2 | 2 2 2 2 2 Hottest 133 | 60 60 60 130 133 Shots Fired 111 | 16 8 2 35 50 Gun 106 | 16 8 2 35 45 Cannon 5 | . . . . 5 Launcher . | . . . . . Special . | . . . . . Kinetic 19 | 8 4 1 6 . Thermal 73 | . . . 23 50 Explosive . | . . . . . Electromagnetic 19 | 8 4 1 6 . Robot Hit Streak 17 | 6 6 1 17 8 Robot Miss Streak 6 | 4 1 1 6 4 Penetration Max . | . . . . . Secondary Targets . | . . . . . Shots Hit Robots 73 | 8 6 1 23 35 Core Hits 45 | 7 3 . 16 19 Critical Hits . | . . . . . Critical Kills . | . . . . . Critical Parts Destroyed . | . . . . . Melee Attacks . | . . . . . Impact . | . . . . . Slashing . | . . . . . Piercing . | . . . . . Sneak Attacks . | . . . . . Combat Hostiles . | . . . . . Follow-up Attacks . | . . . . . Damage Inflicted 949 | 134 95 12 266 442 Guns 929 | 134 95 12 266 422 Cannons 20 | . . . . 20 Explosions . | . . . . . Melee . | . . . . . Ramming . | . . . . . Kinetic 130 | 51 38 . 41 . Thermal 645 | . . . 203 442 Explosive . | . . . . . Electromagnetic 174 | 83 57 12 22 . Impact . | . . . . . Slashing . | . . . . . Piercing . | . . . . . Highest Corruption 2 | . 2 2 . . Average Corruption 2 | . 2 2 . . Corruption Purged . | . . . . . Effects 4 | . . 4 . . Message Errors 2 | . . 2 . . Data Loss (minor) 2 | . . 2 . . Overload Shots . | . . . . . Overflow Damage . | . . . . . Projectiles . | . . . . . Explosions . | . . . . . Melee . | . . . . . Knockbacks . | . . . . . Impact . | . . . . . Kinetic . | . . . . . Secondary . | . . . . . Self-Inflicted Damage . | . . . . . Shots . | . . . . . Rammed . | . . . . . Targets Rammed . | . . . . . Kicked . | . . . . . Crushed . | . . . . . Highest Temperature 576 | . 18 . 472 576 Average Temperature 233 | . 13 . 218 258 Received Heat Transfer 303 | . 36 . 123 144 Effects 28 | . . . 6 22 Shutdowns 8 | . . . 2 6 Interference 2 | . . . . 2 Matter Decay 2 | . . . 1 1 Short Circuit 1 | . . . . 1 Damage (minor) 3 | . . . . 3 Damage (major) 11 | . . . 3 8 Damage (core) 1 | . . . . 1 Siege Activations . | . . . . . Robots Corrupted . | . . . . . Combat Hostiles . | . . . . . Parts Fried . | . . . . . Impact Corruptions . | . . . . . Robots Melted . | . . . . . Combat Hostiles . | . . . . . Parts Melted . | . . . . . Heat Transferred 1267 | . . . 309 958 Parts Sabotaged . | . . . . . Parts Stolen . | . . . . . Parts Stripped . | . . . . . Power Chain Reactions . | . . . . . Missiles Intercepted . | . . . . . Alert | -11 -10 -10 -9 -8 ------- Run | Scr Mat Min Mat Mat Peak Influence 146 | 30 99 38 146 86 Average Influence 37 | 9 46 38 47 26 Maximum Alert Level . | . . . . . Low Security (%) 100 | 100 100 100 100 100 Level 1 . | . . . . . Level 2 . | . . . . . Level 3 . | . . . . . Level 4 . | . . . . . Level 5 . | . . . . . High Security . | . . . . . Max Security . | . . . . . Squads Dispatched 2 | . 1 . . 1 Investigation . | . . . . . Extermination . | . . . . . Reinforcement 2 | . 1 . . 1 Assault . | . . . . . Garrison . | . . . . . Intercept . | . . . . . Construction Impeded . | . . . . . Haulers Reinforced . | . . . . . Stealth | -11 -10 -10 -9 -8 --------- Run | Scr Mat Min Mat Mat Distress Signals 3 | . . . 3 . Communications Jammed . | . . . . . Distress Signals . | . . . . . Times Spotted 29 | . 5 . 10 14 Peak Tracking Total 4 | . 3 . 4 4 Tactical Retreats 4 | . . . 2 2 Traps | -11 -10 -10 -9 -8 ------- Run | Scr Mat Min Mat Mat Traps Triggered 1 | . 1 . . . Indirectly . | . . . . . Trap Hack Attempts . | . . . . . Triggered . | . . . . . Disarmed . | . . . . . Reprogrammed . | . . . . . Reused . | . . . . . Traps Extracted . | . . . . . Installed . | . . . . . Triggered . | . . . . . Machines | -11 -10 -10 -9 -8 ---------- Run | Scr Mat Min Mat Mat Machines Disabled 2 | . . . 1 1 Max in Single Turn 1 | . . . 1 1 Machines Sabotaged . | . . . . . Garrisons Compromised . | . . . . . Overloaded Fab Kills . | . . . . . Fab Network Shutdowns . | . . . . . Hacking | -11 -10 -10 -9 -8 --------- Run | Scr Mat Min Mat Mat Machines Accessed 1 | . . . 1 . Terminals 1 | . . . 1 . Fabricators . | . . . . . Repair Stations . | . . . . . Recycling Units . | . . . . . Scanalyzers . | . . . . . Garrison Access . | . . . . . Total Hacks 1 | . . . 1 . Successful 1 | . . . 1 . Failed . | . . . . . Catastrophic . | . . . . . Database Lockouts . | . . . . . Manual . | . . . . . Terminals 1 | . . . 1 . Fabricators . | . . . . . Repair Stations . | . . . . . Recycling Units . | . . . . . Scanalyzers . | . . . . . Garrison Access . | . . . . . Terminal Hacks 1 | . . . 1 . Record 1 | . . . 1 . Fabricator Hacks . | . . . . . Repair Station Hacks . | . . . . . Recycling Unit Hacks . | . . . . . Scanalyzer . | . . . . . Garrison Access Hacks . | . . . . . Unauthorized Hacks . | . . . . . Terminals . | . . . . . Fabricators . | . . . . . Repair Stations . | . . . . . Recycling Units . | . . . . . Scanalyzers . | . . . . . Garrison Access . | . . . . . Data Cores Recovered . | . . . . . Used . | . . . . . Hacking Detections . | . . . . . Full Trace Events . | . . . . . Feedback Events . | . . . . . Feedback Blocked . | . . . . . Robot Schematics Acquired . | . . . . . Robots Built . | . . . . . Matter . | . . . . . Time . | . . . . . Total Robot Build Rating . | . . . . . Part Schematics Acquired . | . . . . . Parts Built . | . . . . . Matter . | . . . . . Time . | . . . . . Total Part Build Rating . | . . . . . Parts Repaired . | . . . . . Time . | . . . . . Parts Recycled . | . . . . . Recycled Matter . | . . . . . Retrieved Matter . | . . . . . Retrieved Components . | . . . . . Parts Scanalyzed . | . . . . . Part Schematics Acquired . | . . . . . Parts Damaged . | . . . . . Bothacking | -11 -10 -10 -9 -8 ------------ Run | Scr Mat Min Mat Mat Used RIF Installer . | . . . . . Robots Hacked . | . . . . . Non-combat . | . . . . . Combat . | . . . . . Robot Hacks Applied . | . . . . . Relay Couplers Released . | . . . . . Robots Rewired . | . . . . . Allies Hacked . | . . . . . Hacks Repelled . | . . . . . Allies | -11 -10 -10 -9 -8 -------- Run | Scr Mat Min Mat Mat Total Allies 1 | . . 1 . . Largest Group 1 | . . 1 1 . Highest-Rated Group 31 | . . 31 31 . Highest-Rated Ally 31 | . . 31 31 . Total Orders . | . . . . . Ally Attacks 1 | . . . 1 . Total Damage . | . . . . . Kills . | . . . . . Allies Corrupted . | . . . . . Allies Melted . | . . . . . Intel | -11 -10 -10 -9 -8 ------- Run | Scr Mat Min Mat Mat Robot Analysis Total . | . . . . . Derelict Logs Recovered . | . . . . . Drone Launches . | . . . . . Drone Recoveries . | . . . . . Exploration | -11 -10 -10 -9 -8 ------------- Run | Scr Mat Min Mat Mat Turns Passed 1410 | 146 277 279 455 253 Spaces Moved 909 | 81 187 228 278 135 Core 8 | 8 . . . . Treads 9 | 9 . . . . Legs 892 | 64 187 228 278 135 Wheels . | . . . . . Hover . | . . . . . Flight . | . . . . . Fastest Speed 50 | 50 120 120 120 120 Average Speed 120 | 125 120 120 121 120 Slowest Speed 250 | 250 120 120 150 150 Overloaded Moves . | . . . . . Propulsion Burnouts . | . . . . . Robots Hopped . | . . . . . Cave-ins Triggered . | . . . . . Exploration Rate (%) 25 | 3 32 59 26 7 Regions Visited 4 Branch Regions 1 Pre-discovered Areas . | . . . . . Known Exits Taken . | . . . . . Unknown Exits Taken 4 | 1 1 1 1 . Scrap Searched 4 | . . 4 . . Spaces Dug . | . . . . . Terrain Destroyed . | . . . . . Melee . | . . . . . Projectile . | . . . . . AOE . | . . . . . Actions | -11 -10 -10 -9 -8 --------- Run | Scr Mat Min Mat Mat Total 1105 | 106 232 232 362 173 Wait 94 | 2 38 2 48 4 Move 905 | 80 186 227 277 135 Hop . | . . . . . Pick Up 11 | 4 2 . 5 . Fast Attach 17 | 9 . . 4 4 Attach 7 | . . . 2 5 Detach 2 | 1 . . 1 . Swap 2 | . . 1 1 . Drop 9 | 2 2 1 4 . Fire 58 | 8 4 1 20 25 Melee . | . . . . . Ram . | . . . . . Kick . | . . . . . Crush . | . . . . . Escape Stasis . | . . . . . Rewire . | . . . . . Trap . | . . . . . Miscellaneous . | . . . . . Route ------- -11/Scrapyard -10/Materials -10/Mines -9/Materials -8/Materials History --------- Turn | Location | Event 28 | -11/Scrapyard | Discovered new exit (range 15) 147 | -11/Scrapyard | Entered Materials 300 | -10/Materials | Build established: Mutant 401 | -10/Materials | Discovered new exit (range 16) 424 | -10/Materials | Entered Mines 684 | -10/Mines | Discovered new exit (range 12) 691 | -10/Mines | Received a Mining Laser from a helpful Derelict 703 | -10/Mines | Entered Materials 703 | -9/Materials | Accompanied by 1 ally 703 | -9/Materials | Evolved 2 slots: Utility x2 1058 | -9/Materials | Lost 3 parts (1p1u1w) 1137 | -9/Materials | Discovered new exit (range 16) 1158 | -9/Materials | Entered another Materials area 1158 | -8/Materials | Evolved 2 slots: Power x1, Weapon x1 1312 | -8/Materials | Build established: Scavenger-Mutant 1411 | -8/Materials | Self-destructed Last Messages --------------- 01389_ Overheating: Transmission Jammer damaged (-8). 01389_ Overheating: Particle Cannon damaged (-26). 01389_ Overheating: Seismic Analyzer damaged (-4). 01390_ Overheating: Core damaged (-93). 01391_ Overheating: Mni. Grenade Launcher damaged (-15). 01391_ Penetrated by Slug. 01391_ Nuclear Core destroyed. 01391_ H-55 Commando destroyed. 01393_ Overheating: Transmission Jammer damaged (-2). 01393_ Overheating: Particle Cannon damaged (-6). 01393_ Overheating: Seismic Analyzer damaged (-1). 01394_ Acquired 35 matter. 01398_ Acquired Aluminum Leg. 01400_ Acquired Lgt. Nuclear Core. 01404_ Power failure, Lgt. Nuclear Core shutdown. 01406_ Overheating: System interference. 01406_ Particle Cannon temporarily disabled. 01407_ Mni. Grenade Launcher destroyed. 01409_ Particle Cannon destroyed. 01410_ Penetrated by Slug. Map ----- +----------------------------------------------------+ | | | | | | | | | | | | | | | | | | | | | | | | | | | | | | | ????????#############????????????????????????????? | | ????????# #????????????????????????????? | | ????????# """ """ #????????????????????????????? | | ????????# """"""""" #????????????????????????????? | | ????????# "" " [#######??????????????????????? | | ????????# =%/%% #??????????????????????? | | ????????#= %!##### #??????? #?????????????? | | ????????# #???# #????? #?????????????? | | ????????######+######???# #??? #?????????????? | | ????######## ######## ## #?????????????? | | ????# # ! #@ h #?????????????? | | ????# #% + #?????????????? | | ###?# # #%g k#?????????????? | | #T######+### # "T" # ######## #?????????????? | | ##############+#??????????????????????? | | #????????????? ???????????????????????? | | "" """ """ #????????????? ???????????????????????? | | "" """ """ #????????????? ???????????????????????? | | "" """ """ #????????????? ???????????????????????? | | #?????????????#???????????????????????? | | ############?????????????????????????????????????? | | ?????????????????????????????????????????????????? | | ?????????????????????????????????????????????????? | | ?????????????????????????????????????????????????? | | ?????????????????????????????????????????????????? | | ?????????????????????????????????????????????????? | | ?????????????????????????????????????????????????? | | ?????????????????????????????????????????????????? | | ?????????????????????????????????????????????????? | | ?????????????????????????????????????????????????? | | ?????????????????????????????????????????????????? | | ?????????????????????????????????????????????????? | | ?????????????????????????????????????????????????? | | ?????????????????????????????????????????????????? | | ?????????????????????????????????????????????????? | +----------------------------------------------------+ Best States ------------- Heat Dissipation 31 Energy Generation 19 Energy Capacity 265 Matter Stores 300 Matter Capacity 300 Sight Range 16 Terrain Scan Range 16 Terrain Scan Density 60 Jamming Range 8 Evasion (%) 40 Recoil Reduction 1 Item Schematics ----------------- None Robot Schematics ------------------ None Fabricated ------------ Nothing Alien Tech Used ----------------- None Achievements -------------- None Challenges ------------ None Game ------ Seed MyomerTachyonSink Manual? 0 Play Time 00:27:00 Cumulative 6.6 hours Start 2019.11.18 @ 22:20:13 End 2019.12.16 @ 20:13:07 Sessions 9 Manual Loads 0 Difficulty Rogue Special Mode None Game No. 18 Rogue 18 Adventurer 0 Explorer 0 Win Type - Total 0 Types 0/0/0/0/0/0/0 Lore% 2 Gallery% 10 Achievement% 5 Wizard Run 0 Options --------- ASCII 1 Keyboard 1 Movement Numpad Keybinds 0 Fullscreen 1 Font 24/Terminus Map View 76x50 Tactical HUD 1 Map Filters NONE Filters NONE Steam 1 RUN: 6c2d2a7a-35dc-4aaf-ac47-e9fbcc0e720a